{"text_format":"3","workbook":"xlsx","n_sheets":1,"sheets":["VALES DESPENSA"],"not_rendered":{"macros":1,"external_links":4,"defined_names":101},"read":"whole","date_system":"1900"}

{"sheet":"VALES DESPENSA","index":0,"n_rows":94,"n_cols":4,"rows_kept":94,"merged":[[4,1,4,6],[5,1,5,6],[9,1,9,6],[10,1,10,6],[20,2,20,5],[60,2,60,5]]}
[]
[null,"CÁLCULO DE EXENCIÓN DE VALES DE DESPENSA"]
[]
[null,"Introducción"]
[null,"El salario base de cotización (SBC) se integra con los pagos hechos en efectivo por cuota diaria, gratificaciones, percepciones, alimentación, habitación, primas, comisiones, prestaciones en especie y cualquier otra cantidad o prestación que se entregue al trabajador por su trabajo."]
[null,"Entre los conceptos que se excluyen como integrantes del  SBC se encuentra la despensa siempre y cuando no rebase el 40% del valor de la Unidad de Medida y Actualización (UMA)"]
[]
[null,"Precisiones"]
[null,"La despensa es un concepto variable, debido al numero de los días del mes en  que se entrega"]
[null,"Al ser un ingreso variable debe reportarse en los primeros cinco días hábiles de Enero, Marzo, Mayo, Julio, Septiembre y Noviembre de cada año"]
[null,"es viable llevar a cabo su calculo mensual considerando el valor de la UMA vigente al momento en que el trabajador recibió la prestaciones que se trate "]
[]
[null,"Practica - Datos"]
[null,"Salario Mensual ",{"v":30000,"d":"30,000.00"}]
[null,"Vales Despensa",{"v":3000,"d":"3,000.00"}]
[null,"Aguinaldo",30,"días"]
[null,"Vacaciones",14,"días"]
[null,"Prima vacacional",{"v":0.35,"d":"35%"}]
[]
[]
[" ","Primer paso","Determinación  del SBC Fijo"]
[]
[null,"Salario Diario"]
[]
[null,"Salario Mensual",{"$f":"+C14","v":{"v":30000,"d":"30,000.00"}}]
["Entre   (/)","Treinta",30]
["Igual   (=)","Salario Diario",{"$f":"+C25/C26","v":{"v":1000,"d":"1,000.00"}}]
[null,null," "]
[null,null," "]
[null,"Parte proporcional diaria de aguinaldo"]
[]
[null,"Días de aguinaldo",{"$f":"+C16","v":30}]
["Entre   (/)","Días del Año",365]
["Igual   (=)","Parte proporcional diaria de Aguinaldo",{"$f":"+C32/C33","v":{"v":0.0821917808219178,"d":"0.0822"}}]
[null,null," "]
[]
[null,"Parte proporcional diaria de Prima Vacacional"]
[]
[null,"Días de Vacaciones",{"$f":"+C17","v":14}]
["Por     (x)","Porcentaje de Prima Vacacional",{"$f":"+C18","v":{"v":0.35,"d":"35%"}}]
["Igual   (=)","Subtotal",{"$f":"+C39*C40","v":{"v":4.8999999999999995,"d":"4.9"}}]
["Entre   (/)","Días del Año",365]
["Igual   (=)","Parte proporcional diaria de Prima Vacacional",{"$f":"+C41/C42","v":{"v":0.013424657534246574,"d":"0.0134"}}]
[]
[]
[null,"Factor de integración salarial"]
[]
[null,"Unidad",1]
["Mas    (+)","Parte proporcional diaria de Aguinaldo",{"$f":"+C34","v":{"v":0.0821917808219178,"d":"0.0822"}}]
["Mas    (+)","Parte proporcional diaria de Prima Vacacional",{"$f":"+C43","v":{"v":0.013424657534246574,"d":"0.0134"}}]
["Igual   (=)","Factor de Integración",{"$f":"+C48+C49+D51","v":{"v":1.0821917808219177,"d":"1.0822"}}]
[]
[]
[null,"SBC Fijo"]
[]
[null,"Salario Diario",{"$f":"+C27","v":{"v":1000,"d":"1,000.00"}}]
["Por     (x)","Factor de Integración",{"$f":"+C51","v":{"v":1.0821917808219177,"d":"1.0822"}}]
["Igual   (=)","SBC Fijo",{"$f":"+C56*C57","v":{"v":1082.1917808219177,"d":"1,082.19"}}]
[]
[]
[null,"Segundo paso","Determinación  de la Parte Variable"]
[]
[null,"Determinación de la Parte Variable por mes","Enero","Febrero"]
[]
[null,"Valor de la UMA",84.49,86.88]
["Entre   (/)","Porcentaje de exención ",{"v":0.4,"d":"40%"},{"v":0.4,"d":"40%"}]
["Igual   (=)","Importe de la exención",{"$f":"+C65*C66","v":{"v":33.796,"d":"33.80"}},{"$f":"+D65*D66","v":{"v":34.752,"d":"34.75"}}]
["Por     (x)","días de salario devengado en el mes",31,28]
["Igual   (=)","Importe exento vales despensa",{"$f":"+C67*C68","v":{"v":1047.676,"d":"1,047.68"}},{"$f":"+D67*D68","v":{"v":973.056,"d":"973.06"}}]
["Menos (-)","Importe vales despensa otorgado",{"$f":"+C15","v":{"v":3000,"d":"3,000.00"}},{"$f":"+C15","v":{"v":3000,"d":"3,000.00"}}]
["Igual   (=)","Excedente a integrar al SBC de vales despensa",{"$f":"+C70-C69","v":{"v":1952.324,"d":"1,952.32"}},{"$f":"+D70-D69","v":{"v":2026.944,"d":"2,026.94"}}]
[]
[null,"Cantidad diaria de la Parte Variable "]
[]
[" ","Excedente a integrar al SBC de Enero",{"$f":"+C71","v":{"v":1952.324,"d":"1,952.32"}}," "]
["Mas    (+)","Excedente a integrar al SBC de Febrero",{"$f":"+D71","v":{"v":2026.944,"d":"2,026.94"}}]
["Igual   (=)","Total excedente a integrar en el Bimestre",{"$f":"+C75+C76","v":{"v":3979.268,"d":"3,979.27"}}]
["Entre   (/)","Días del Bimestre (Ene-Feb)",{"$f":"+C68+D68","v":59}]
["Igual   (=)","Importe a integrar al SBC Parte Variable",{"$f":"+C77/C78","v":{"v":67.44522033898305,"d":"67.45"}}]
[]
[]
[null,"Determinación del SBC a reportar"]
[]
[" ","SBC parte Fija",{"$f":"+C58","v":{"v":1082.1917808219177,"d":"1,082.19"}}," "]
["Mas    (+)","SBC parte Variable",{"$f":"+C79","v":{"v":67.44522033898305,"d":"67.45"}}]
["Igual   (=)","SBC a reportar",{"$f":"+C84+C85","v":{"v":1149.6370011609008,"d":"1,149.64"}}]
[]
[]
[null,"Fundamento Legal"]
[]
[null,"Art. 27 VI Ley del Seguro Social"]
[null," "]
[]
[null," "]